bitfinex-derivatives/quotes_SOLF0:USTF0_20260305
["timestamp","ask_amount","ask_price","bid_price","bid_amount"]
[1772706045322,3.74869522,91.443,91.41,3.44463275]
[1772706045620,3.74869522,91.455,91.41,3.44463275]
[1772706046022,3.74869522,91.449,91.401,3.8294237]
[1772706047427,9.84,91.438,91.401,3.8294237]
[1772706047825,3.74869522,91.437,91.39,3.44463275]
[1772706048220,3.74869522,91.437,91.39,7.27405645]
[1772706048723,3.72987288,91.426,91.381,9.846]
[1772706049125,3.72987288,91.426,91.382,3.81347875]
[1772706049332,3.72987288,91.426,91.39,3.44463275]
[1772706049528,9.841,91.425,91.39,3.44463275]
[1772706050529,3.72987288,91.426,91.39,3.44463275]
[1772706050530,3.72987288,91.426,91.39,7.2581115]
[1772706050832,9.84,91.432,91.4,3.44463275]
[1772706051732,9.841,91.428,91.392,3.81347875]
[1772706053835,3.72987288,91.416,91.37,9.847]
[1772706054025,3.72987288,91.416,91.37,3.44463275]
[1772706054228,3.72987288,91.389,91.337,3.81347875]
[1772706054425,13.57487288,91.389,91.341,9.85]
[1772706054630,13.57487288,91.389,91.342,3.81347875]
[1772706054933,13.57487288,91.389,91.35,3.44463275]
[1772706055427,13.57487288,91.389,91.35,7.2581115]
[1772706055929,13.57487288,91.389,91.35,3.81347875]
[1772706056834,9.846,91.381,91.34,3.44463275]
[1772706057424,9.846,91.378,91.336,3.81347875]
[1772706058026,3.44463275,91.37,91.326,9.852]
[1772706058228,3.72987288,91.369,91.326,9.852]
[1772706058932,3.72987288,91.359,91.311,3.81347875]
[1772706059131,3.72987288,91.359,91.32,3.44991278]
[1772706059830,3.72987288,91.365,91.321,3.81347875]
[1772706060328,3.72987288,91.359,91.32,3.44991278]
[1772706060528,3.72987288,91.359,91.307,3.81347875]
[1772706060730,3.72987288,91.359,91.311,3.81347875]
[1772706061430,3.72987288,91.349,91.3,3.44991278]
[1772706061634,3.72987288,91.349,91.301,3.81347875]
[1772706061935,3.72987288,91.349,91.311,9.853]
[1772706063133,3.72987288,91.363,91.321,3.81347875]
[1772706063736,3.72987288,91.363,91.323,3.81347875]
[1772706065437,3.72987288,91.359,91.314,9.853]
[1772706066036,3.72987288,91.359,91.315,3.81347875]
[1772706068238,3.72987288,91.356,91.314,9.853]
[1772706068632,3.72987288,91.356,91.306,9.854]
[1772706069439,3.72987288,91.354,91.306,9.854]
[1772706069841,9.849,91.353,91.308,9.854]
[1772706070042,3.72987288,91.352,91.307,3.81347875]
[1772706070444,3.72987288,91.352,91.31,3.44991278]
[1772706071338,3.72987288,91.371,91.321,3.81347875]
[1772706072246,3.72987288,91.359,91.306,3.81347875]
[1772706072544,3.72987288,91.349,91.291,3.81347875]
[1772706072744,3.72987288,91.349,91.3,3.44991278]
[1772706073045,9.849,91.357,91.311,3.81347875]
[1772706074544,3.72987288,91.349,91.3,3.44991278]
[1772706074747,3.72987288,91.349,91.301,3.81347875]
[1772706074944,3.72987288,91.349,91.311,13.66647875]
[1772706075139,3.72987288,91.349,91.311,9.853]
[1772706076141,9.848,91.364,91.318,13.66647875]
[1772706076348,9.848,91.364,91.321,3.81347875]
[1772706077736,3.72987288,91.37,91.321,3.81347875]
[1772706077943,3.72987288,91.389,91.341,3.81347875]
[1772706078143,3.72987288,91.389,91.35,3.44991278]
[1772706079044,3.68036817,91.409,91.361,3.94991003]
[1772706080444,3.68036817,91.409,91.36,3.44991278]
[1772706080445,3.68036817,91.397,91.35,3.44991278]
[1772706081344,3.68036817,91.397,91.347,3.94991003]
[1772706081546,3.44991278,91.4,91.35,3.44991278]
[1772706081547,3.68036817,91.394,91.35,3.44991278]
[1772706082245,9.846,91.382,91.34,3.44991278]
[1772706082448,3.68036817,91.381,91.34,3.44991278]
[1772706082939,3.68036817,91.381,91.332,3.94991003]
[1772706083447,9.846,91.377,91.334,9.851]
[1772706084447,9.846,91.377,91.34,3.44991278]
[1772706086050,9.845,91.385,91.36,3.44991278]
[1772706086245,9.845,91.385,91.277,27.14581061]
[1772706086246,19.692,91.383,91.278,20.31804172]
[1772706086450,13.52936817,91.354,91.301,3.94991003]
[1772706086744,3.68036817,91.353,91.301,3.94991003]
[1772706087047,3.68036817,91.353,91.31,3.44991278]
[1772706087750,9.85,91.346,91.31,3.44991278]
[1772706087948,9.85,91.346,91.301,3.94991003]
[1772706088246,9.849,91.354,91.311,3.94827252]
[1772706088451,3.90846522,91.369,91.33,3.44991278]
[1772706088652,3.90846522,91.369,91.321,3.94827252]
[1772706089442,9.848,91.365,91.321,3.94827252]
[1772706091255,13.75646522,91.365,91.321,3.94827252]
[1772706091454,13.75646522,91.358,91.312,9.853]
[1772706091752,13.75646522,91.358,91.31,7.3981853]
[1772706092347,13.75646522,91.358,91.311,9.853]
[1772706093055,13.75646522,91.358,91.32,3.44991278]
[1772706094358,3.90846522,91.357,91.32,3.44991278]
[1772706095265,9.848,91.366,91.32,7.3981853]
[1772706095661,9.848,91.366,91.321,3.94827252]
[1772706097149,3.90846522,91.373,91.321,3.94827252]
[1772706097553,3.90846522,91.373,91.322,9.852]
[1772706098354,9.847,91.371,91.322,9.852]
[1772706098553,3.90846522,91.37,91.322,9.852]
[1772706098954,3.90846522,91.37,91.322,13.80027252]
[1772706100564,3.90846522,91.37,91.33,3.44991278]
[1772706100765,9.845,91.393,91.341,3.94827252]
[1772706100967,9.845,91.393,91.36,3.44991278]
[1772706101366,9.845,91.39,91.35,3.44991278]
[1772706101561,3.90846522,91.389,91.35,3.44991278]
[1772706102063,9.844,91.398,91.35,17.2471853]
[1772706102366,9.844,91.398,91.36,3.44991278]
[1772706102770,3.90846522,91.416,91.37,3.44991278]
[1772706103370,9.842,91.414,91.37,13.29691278]
[1772706104066,3.90846522,91.416,91.37,13.29691278]
[1772706104267,3.90846522,91.416,91.38,3.44991278]
[1772706105561,189.57454876,91.422,91.39,3.44991278]
[1772706105761,3.90846522,91.422,91.39,3.44991278]
[1772706106369,3.90846522,91.444,91.4,3.44991278]
[1772706106967,3.90846522,91.444,91.39,3.44991278]
[1772706107170,3.90846522,91.444,91.41,3.44991278]
[1772706107470,3.90846522,91.46,91.42,3.44991278]
[1772706108267,3.90846522,91.449,91.4,3.44991278]
[1772706108874,3.67584069,91.447,91.4,3.44991278]
[1772706109074,3.67584069,91.447,91.393,3.94827252]
[1772706109773,13.51584069,91.434,91.393,3.94827252]
[1772706110073,3.67584069,91.433,91.38,3.44991278]
[1772706110469,3.67584069,91.428,91.374,3.95561324]
[1772706111068,9.843,91.413,91.374,3.95561324]
[1772706114678,9.843,91.406,91.355,3.95561324]
[1772706115382,9.844,91.398,91.355,3.95561324]
[1772706115979,9.843,91.406,91.355,3.95561324]
[1772706117385,9.843,91.406,91.357,3.95561324]
[1772706119287,9.844,91.399,91.357,3.95561324]
[1772706119486,13.51984069,91.399,91.357,3.95561324]
[1772706120280,3.67584069,91.399,91.357,3.95561324]
[1772706121086,3.67584069,91.426,91.357,3.95561324]
[1772706122487,9.843,91.412,91.367,3.95561324]
[1772706123592,9.842,91.42,91.369,3.95561324]
[1772706124088,9.842,91.42,91.378,3.95561324]
[1772706128896,9.842,91.42,91.375,9.846]
[1772706128897,3.67584069,91.426,91.38,3.95561324]
[1772706129093,3.67584069,91.439,91.381,3.95561324]
[1772706130389,9.84,91.435,91.386,3.95561324]
[1772706130590,13.51584069,91.435,91.386,3.95561324]
[1772706131493,13.51584069,91.435,91.389,3.95561324]
[1772706131794,3.67584069,91.44,91.389,3.95561324]
[1772706132190,3.67584069,91.44,91.396,9.844]
[1772706132396,3.67584069,91.44,91.397,3.95561324]
[1772706132595,9.838,91.451,91.41,7.39906925]
[1772706133200,9.839,91.447,91.41,7.39906925]
[1772706133499,3.67584069,91.446,91.401,9.844]
[1772706134496,3.67584069,91.44,91.39,3.44345601]
[1772706135400,9.84,91.434,91.39,3.44345601]
[1772706135793,9.84,91.434,91.39,7.39906925]
[1772706135996,3.67584069,91.457,91.411,3.95561324]
[1772706137498,9.838,91.452,91.411,3.95561324]
[1772706138197,3.67584069,91.448,91.4,3.95561324]
[1772706138498,3.67584069,91.448,91.4,7.39906925]
[1772706139404,3.79458505,91.445,91.401,9.844]
[1772706139898,3.79458505,91.445,91.41,3.44345601]
[1772706140406,3.79458505,91.445,91.4,7.39906925]
[1772706141101,3.79458505,91.445,91.41,3.44345601]
[1772706142602,3.79458505,91.49,91.431,3.85979273]
[1772706142907,3.79458505,91.49,91.45,3.44345601]
[1772706143207,3.79458505,91.488,91.441,9.839]
[1772706143804,3.79458505,91.488,91.45,3.44345601]
[1772706144304,9.835,91.487,91.45,3.44345601]
[1772706144605,3.79458505,91.479,91.421,3.85979273]
[1772706144804,3.79458505,91.479,91.43,3.44345601]
[1772706145503,3.79458505,91.476,91.43,3.44345601]
[1772706146403,9.836,91.472,91.43,3.44345601]
[1772706147211,3.79458505,91.476,91.431,3.85979273]
[1772706147607,3.79458505,91.476,91.434,9.84]
[1772706147904,13.55642696,91.488,91.44,3.44345601]
[1772706148501,9.835,91.484,91.44,3.44345601]
[1772706148701,13.55742696,91.484,91.44,3.44345601]
[1772706148908,3.72242696,91.483,91.44,3.44345601]
[1772706149108,3.72242696,91.481,91.431,3.85979273]
[1772706149309,3.44345601,91.48,91.43,3.44345601]
[1772706149503,19.664,91.512,91.433,9.84]
[1772706149504,13.55742696,91.479,91.433,9.84]
[1772706149710,3.72242696,91.499,91.45,3.44345601]
[1772706149911,3.72242696,91.499,91.451,3.82971219]
[1772706152519,9.834,91.489,91.451,3.82971219]
[1772706152714,3.72242696,91.499,91.46,3.44345601]
[1772706154018,13.55542696,91.498,91.46,3.44345601]
[1772706154212,3.72242696,91.497,91.46,3.44345601]
[1772706154412,3.72242696,91.494,91.451,3.82971219]
[1772706155512,9.834,91.488,91.451,3.82971219]
[1772706157717,9.835,91.481,91.451,3.82971219]
[1772706160013,9.836,91.475,91.451,3.82971219]
[1772706160313,3.72242696,91.494,91.451,3.82971219]
[1772706161420,9.835,91.485,91.451,3.82971219]
[1772706162816,9.835,91.485,91.45,3.44345601]
[1772706163619,3.72242696,91.478,91.44,3.44345601]
[1772706164123,3.72242696,91.478,91.43,3.44345601]
[1772706164719,3.72242696,91.494,91.451,3.82971219]
[1772706165712,3.72242696,91.481,91.441,3.82971219]
[1772706167619,3.72242696,91.499,91.45,3.44345601]
[1772706167818,3.72242696,91.499,91.46,3.44345601]
[1772706168713,3.72242696,91.499,91.46,7.2731682]
[1772706169121,3.59465892,91.523,91.49,3.44345601]
[1772706169419,3.59465892,91.549,91.5,3.44345601]
[1772706169809,9.83,91.532,91.5,3.44345601]
[1772706170115,3.59465892,91.535,91.5,3.44345601]
[1772706170315,3.59465892,91.559,91.51,3.44345601]
[1772706170514,9.829,91.54,91.51,3.44345601]
[1772706171412,9.829,91.54,91.5,3.44345601]
[1772706171818,3.59465892,91.544,91.51,3.44345601]
[1772706172118,3.59465892,91.559,91.51,3.44345601]
[1772706172319,9.828,91.552,91.51,3.44345601]
[1772706173819,9.828,91.545,91.51,3.44345601]
[1772706174021,9.828,91.545,91.5,3.8182169]
[1772706174022,3.59465892,91.559,91.52,3.44345601]
[1772706174419,3.59465892,91.559,91.5,3.8182169]
[1772706174615,3.59465892,91.549,91.5,7.26167291]
[1772706175522,9.829,91.536,91.51,3.44345601]
[1772706176522,19.646,91.596,91.46,20.31804172]
[1772706176523,9.83,91.528,91.476,3.8182169]
[1772706176722,13.42465892,91.528,91.49,3.44345601]
[1772706177226,13.42465892,91.528,91.476,3.8182169]
[1772706177227,3.59465892,91.528,91.48,3.44345601]
[1772706177424,3.59465892,91.528,91.476,3.8182169]
[1772706177624,3.59465892,91.519,91.47,3.44345601]
[1772706178224,9.831,91.518,91.48,3.44345601]
[1772706178519,3.59465892,91.532,91.49,3.44345601]
[1772706179214,3.59465892,91.559,91.5,3.44345601]
[1772706179614,3.59465892,91.559,91.49,3.8182169]
[1772706179816,9.829,91.539,91.491,3.8182169]
[1772706180218,13.42265892,91.549,91.51,3.44345601]
[1772706180624,13.42265892,91.549,91.51,3.4351023]
[1772706180823,13.42265892,91.549,91.52,3.4351023]
[1772706181024,13.42265892,91.549,91.51,3.4351023]
[1772706181820,9.829,91.542,91.51,3.4351023]
[1772706182022,9.829,91.542,91.501,3.8182169]
[1772706182317,9.829,91.542,91.51,3.4351023]
[1772706183331,9.829,91.542,91.501,3.8182169]
[1772706184128,3.59465892,91.549,91.51,3.4351023]
[1772706184524,9.827,91.558,91.53,3.4351023]
[1772706185126,3.59465892,91.565,91.53,3.4351023]
[1772706185924,3.59465892,91.579,91.53,3.4351023]
[1772706186230,3.59465892,91.579,91.53,7.2533192]
[1772706186930,3.59465892,91.579,91.531,3.8182169]
[1772706187231,3.59465892,91.579,91.54,3.4351023]
[1772706187932,9.825,91.577,91.54,3.4351023]
[1772706188331,3.59465892,91.579,91.531,3.8182169]
[1772706188626,3.4351023,91.57,91.521,3.8182169]
[1772706188827,3.4351023,91.56,91.51,3.4351023]
[1772706189022,3.59465892,91.549,91.5,3.4351023]
[1772706189225,3.59465892,91.549,91.501,3.8182169]
[1772706189627,3.59465892,91.549,91.51,3.4351023]
[1772706189932,9.828,91.548,91.51,3.4351023]
[1772706190326,3.59465892,91.549,91.501,3.8182169]
[1772706190730,3.59465892,91.549,91.49,3.4351023]
[1772706191130,9.829,91.536,91.491,9.834]
[1772706191330,9.829,91.536,91.492,3.8182169]
[1772706191832,3.4351023,91.55,90.682,173.76907234]
[1772706191833,3.59465892,91.535,91.48,3.4351023]
[1772706192025,3.59465892,91.535,91.481,3.8182169]
[1772706192429,9.831,91.522,91.481,3.8182169]
[1772706192633,19.65,91.579,91.5,3.4351023]
[1772706192634,3.59465892,91.549,91.5,3.4351023]
[1772706192834,9.829,91.54,91.5,3.4351023]
[1772706193334,9.829,91.54,91.501,3.8182169]
[1772706194136,9.829,91.54,91.511,3.8182169]
[1772706194437,3.59465892,91.569,91.52,3.4351023]
[1772706194633,3.59465892,91.559,91.51,7.2533192]
[1772706194936,3.59465892,91.549,91.5,3.4351023]
[1772706195340,3.59465892,91.549,91.5,7.2533192]
[1772706196041,9.829,91.537,91.5,7.2533192]
[1772706197137,3.59465892,91.549,91.5,3.8182169]
[1772706197344,3.59465892,91.549,91.5,7.2533192]
[1772706197643,3.59465892,91.549,91.456,19.676]
[1772706197644,3.4351023,91.56,91.511,3.8182169]
[1772706197838,3.59465892,91.567,91.52,3.4351023]
[1772706198034,1.90085511,91.611,91.443,27.06729131]
[1772706198035,3.59465892,91.583,91.53,3.4351023]
[1772706198238,3.59465892,91.583,91.53,7.2533192]
[1772706198543,3.59465892,91.569,91.52,3.4351023]
[1772706198738,3.59465892,91.569,91.523,3.71838487]
[1772706199042,3.4351023,91.58,91.53,3.4351023]
[1772706199245,9.826,91.569,91.53,3.71838487]
[1772706199542,9.826,91.569,91.53,7.15348717]
[1772706199838,9.824,91.582,91.54,3.4351023]
[1772706200839,9.823,91.59,91.55,3.4351023]
[1772706201348,9.823,91.59,91.55,7.15348717]
[1772706202644,9.823,91.598,91.56,3.4351023]
[1772706204042,9.823,91.598,91.57,3.4351023]
[1772706204343,7.35880247,91.61,91.56,7.15348717]
[1772706205043,3.92370017,91.609,91.56,7.15348717]
[1772706205246,3.92370017,91.609,91.55,3.4351023]
[1772706205539,3.92370017,91.593,91.546,3.71838487]
[1772706206043,9.824,91.588,91.55,3.4351023]
[1772706206442,3.92370017,91.63,91.57,3.4351023]
[1772706206634,3.92370017,91.619,91.57,3.4351023]
[1772706207544,9.822,91.605,91.57,3.4351023]
[1772706208343,3.6608802,91.635,91.6,3.4351023]
[1772706208541,13.53796106,91.698,91.511,152.948]
[1772706208542,3.6608802,91.7,91.611,3.70263022]
[1772706208748,9.818,91.645,91.598,3.70263022]
[1772706209042,3.6608802,91.652,91.61,3.4351023]
[1772706209435,9.816,91.66,91.601,3.70263022]
[1772706209640,9.816,91.66,91.611,3.70263022]
[1772706209841,3.6608802,91.668,91.611,3.70263022]
[1772706210045,3.6608802,91.659,91.6,3.4351023]
[1772706210247,3.6608802,91.659,91.601,3.70263022]
[1772706210437,3.6608802,91.659,91.54,62.0]
[1772706210438,3.4351023,91.64,91.59,3.4351023]
[1772706210642,1.8991953,91.691,91.577,3.70263022]
[1772706210643,3.6608802,91.629,91.58,3.4351023]
[1772706210837,3.6608802,91.629,91.57,3.4351023]
[1772706211044,9.82,91.618,91.57,3.4351023]
[1772706211441,3.4351023,91.64,91.591,3.70263022]
[1772706211644,9.819,91.628,91.591,3.70263022]
[1772706211841,3.6608802,91.629,91.58,3.4351023]
[1772706212140,3.6608802,91.629,91.494,34.02726416]
[1772706212141,3.6608802,91.609,91.56,3.4351023]
[1772706212441,3.6608802,91.609,91.54,17.18233244]
[1772706212946,9.823,91.596,91.54,7.35333244]
[1772706213947,9.822,91.605,91.542,2.39048493]
[1772706214357,9.821,91.614,91.561,2.39048493]
[1772706214847,9.822,91.607,91.561,2.39048493]
[1772706215039,3.6608802,91.617,91.561,2.39048493]
[1772706215638,9.822,91.608,91.561,2.39048493]
[1772706216240,13.4818802,91.617,91.561,2.39048493]
[1772706216945,9.822,91.608,91.561,2.39048493]
[1772706217252,3.6608802,91.616,91.561,2.39048493]
[1772706218547,3.6608802,91.616,91.563,2.35051687]
[1772706219254,3.6608802,91.616,91.567,9.826]
[1772706219453,9.819,91.629,91.568,2.34774002]
[1772706220449,3.6608802,91.689,91.601,2.34774002]
[1772706220947,3.6608802,91.666,91.601,2.34774002]
[1772706221655,9.817,91.655,91.601,2.34774002]
[1772706222250,9.815,91.665,91.602,2.36876575]
[1772706222550,3.6608802,91.665,91.602,2.36876575]
[1772706222949,9.816,91.657,91.602,2.36876575]
[1772706224055,3.6608802,91.656,91.579,2.35478439]
[1772706224253,3.6608802,91.656,91.591,2.35478439]
[1772706224953,13.4748802,91.675,91.614,2.35478439]
[1772706225353,3.6608802,91.675,91.614,2.35478439]
[1772706225549,9.814,91.682,91.614,2.35478439]
[1772706225757,3.6608802,91.692,91.614,2.35478439]
[1772706226249,3.6608802,91.709,91.631,2.33781838]
[1772706226653,3.6608802,91.749,91.651,2.33781838]
[1772706226849,3.6608802,91.749,91.675,2.33781838]
[1772706227551,3.6608802,91.745,91.679,2.28784318]
[1772706228158,9.806,91.753,91.69,2.28784318]
[1772706228353,3.6608802,91.769,91.69,2.28784318]
[1772706228552,3.6608802,91.769,91.711,12.09784318]
[1772706228749,3.7418222,91.797,91.712,2.28784318]
[1772706229159,3.7418222,91.778,91.712,2.28784318]
[1772706229458,3.7418222,91.778,91.69,7.35333244]
[1772706229459,3.7418222,91.778,91.691,2.24099037]
[1772706229758,3.7418222,91.731,91.66,7.35333244]
[1772706230056,3.7418222,91.731,91.654,2.24099037]
[1772706230461,7.35333244,91.79,91.691,2.24099037]
[1772706230462,3.7418222,91.789,91.691,2.24099037]
[1772706230956,9.804,91.769,91.692,2.24099037]
[1772706231266,9.804,91.769,91.69,7.35333244]
[1772706231267,3.7418222,91.789,91.711,2.24099037]
[1772706231457,9.802,91.788,91.723,2.20126026]
[1772706232059,3.7418222,91.787,91.723,2.20126026]
[1772706232357,3.7418222,91.787,91.71,7.35333244]
[1772706232556,3.7418222,91.787,91.711,2.20126026]
[1772706233053,152.366,91.861,91.731,2.20126026]
[1772706233258,3.7418222,91.797,91.731,2.20126026]
[1772706234357,3.7418222,91.797,91.713,2.23377673]
[1772706235061,9.802,91.794,91.714,9.81]
[1772706235252,3.7418222,91.793,91.715,2.23377673]
[1772706235455,3.7418222,91.793,91.721,2.21061789]
[1772706235655,3.7418222,91.788,91.721,2.21061789]
[1772706236259,3.7418222,91.783,91.721,2.21061789]
[1772706236758,3.7418222,91.809,91.741,2.21061789]
[1772706236964,3.7418222,91.809,91.751,2.21061789]
[1772706236965,7.483e-05,91.798,91.751,2.21061789]
[1772706238861,3.74189703,91.798,91.733,2.24882392]
[1772706239260,3.74189703,91.798,91.741,2.2934182]
[1772706239655,7.483e-05,91.798,91.741,2.2934182]
[1772706240260,7.483e-05,91.798,91.74,7.35333244]
[1772706240461,7.483e-05,91.798,91.721,2.2934182]
[1772706241565,9.801,91.796,91.721,2.2934182]
[1772706241766,3.7418222,91.795,91.721,2.2934182]
[1772706242060,3.7418222,91.795,91.631,152.747]
[1772706242061,7.483e-05,91.798,91.711,2.48243216]
[1772706242456,3.7418222,91.789,91.711,2.48243216]
[1772706242860,3.7418222,91.766,91.711,2.48243216]
[1772706243065,3.7418222,91.766,91.701,2.48243216]
[1772706243465,3.7418222,91.785,91.704,2.5087435]
[1772706243861,7.32831569,91.77,91.683,2.5087435]
[1772706244070,3.7418222,91.749,91.672,2.5087435]
[1772706244464,3.7418222,91.749,91.693,2.5087435]
[1772706246167,9.807,91.748,91.693,2.5087435]
[1772706246465,9.807,91.748,91.686,9.813]
[1772706246466,3.7418222,91.789,91.687,2.54192781]
[1772706246670,3.7418222,91.766,91.691,2.54192781]
[1772706247866,9.806,91.751,91.693,9.812]
[1772706248066,3.7418222,91.75,91.673,2.52193161]
[1772706248571,3.7418222,91.729,91.652,2.52193161]
[1772706248772,3.7418222,91.729,91.583,152.827]
[1772706248773,3.7418222,91.709,91.621,2.52193161]
[1772706249273,3.7418222,91.69,91.621,2.52193161]
[1772706249672,9.814,91.675,91.621,2.52193161]
[1772706249870,13.5558222,91.675,91.621,2.52193161]
[1772706250371,3.7418222,91.672,91.602,2.51670702]
[1772706250573,3.7418222,91.669,91.602,2.51670702]
[1772706250768,3.7418222,91.669,91.57,7.32831569]
[1772706250973,3.7418222,91.669,91.571,2.51670702]
[1772706251172,3.7418222,91.655,91.584,9.824]
[1772706251370,3.7418222,91.655,91.585,2.53222792]
[1772706252972,3.7418222,91.653,91.585,2.53222792]
[1772706253368,3.7418222,91.649,91.565,2.5607419]
[1772706254476,3.7418222,91.64,91.568,9.826]
[1772706254974,7.32831569,91.63,91.544,2.5607419]
[1772706255178,3.7418222,91.629,91.544,2.5607419]
[1772706255769,3.7418222,91.629,91.555,12.41059328]
[1772706256081,3.7418222,91.629,91.556,2.58359328]
[1772706256281,3.7418222,91.645,91.572,2.58359328]
[1772706256878,3.7418222,91.623,91.551,2.58359328]
[1772706257178,3.7418222,91.669,91.551,2.58359328]
[1772706257380,3.7418222,91.628,91.562,2.8633033]
[1772706258476,3.7418222,91.628,91.564,9.826]
[1772706259081,3.7418222,91.628,91.568,9.826]
[1772706259679,3.73737249,91.649,91.574,2.89005916]
[1772706260482,3.73737249,91.647,91.574,2.89005916]
[1772706261878,13.55637249,91.635,91.576,9.825]
[1772706262182,3.73737249,91.634,91.576,9.825]
[1772706262980,3.73737249,91.634,91.584,9.824]
[1772706264182,3.73737249,91.634,91.593,9.823]
[1772706264383,3.73737249,91.634,91.57,7.32831569]
[1772706264384,3.73737249,91.656,91.594,2.80863076]
[1772706264682,3.73737249,91.689,91.594,2.80863076]
[1772706265593,13.55237249,91.666,91.61,9.821]
[1772706265793,3.73737249,91.665,91.61,9.821]
[1772706266295,9.816,91.663,91.601,12.61728187]
[1772706266695,3.73737249,91.662,91.601,12.61728187]
[1772706267599,3.65580908,91.658,91.601,12.61728187]
[1772706267895,3.65580908,91.658,91.59,9.823]
[1772706268090,3.65580908,91.658,91.583,2.81864546]
[1772706269396,9.818,91.646,91.583,2.81864546]
[1772706269600,3.65580908,91.658,91.583,2.81864546]
[1772706270297,3.65580908,91.653,91.59,9.823]
[1772706270798,3.65580908,91.633,91.577,9.825]
[1772706271092,3.65580908,91.633,91.566,2.81194428]
[1772706271093,7.32831569,91.67,91.566,2.81194428]
[1772706271401,3.65580908,91.669,91.581,2.79569415]
[1772706271596,7.32831569,91.67,91.581,2.79569415]
[1772706271597,9.818,91.644,91.591,9.823]
[1772706271897,9.818,91.644,91.581,2.79569415]
[1772706272292,9.818,91.644,91.589,9.823]
[1772706272598,13.47380908,91.644,91.589,9.823]
[1772706272799,3.65580908,91.644,91.596,9.823]
[1772706272999,3.65580908,91.644,91.581,2.79569415]
[1772706273401,3.65580908,91.644,91.561,2.82692771]
[1772706274293,3.65580908,91.624,91.561,2.82692771]
[1772706274490,19.63,91.671,91.561,2.82692771]
[1772706274692,3.65580908,91.641,91.561,2.82692771]
[1772706275501,7.32831569,91.66,91.579,9.825]
[1772706275502,3.65580908,91.636,91.579,9.825]
[1772706276103,3.65580908,91.63,91.57,9.825]
[1772706277603,9.82,91.627,91.57,9.825]
[1772706277803,13.47580908,91.627,91.57,9.825]
[1772706278501,3.65580908,91.626,91.57,9.825]
[1772706278801,3.65580908,91.624,91.57,9.825]
[1772706279503,3.65580908,91.624,91.577,9.825]
[1772706280201,3.65580908,91.624,91.569,9.826]
[1772706280202,3.65580908,91.623,91.569,9.826]
[1772706281303,3.65580908,91.621,91.569,9.826]
[1772706282498,3.65580908,91.614,91.54,7.32831569]
[1772706282700,3.65580908,91.614,91.541,2.8779749]
[1772706283308,3.65580908,91.614,91.564,2.86795117]
[1772706284404,3.65580908,91.614,91.574,9.825]
[1772706284707,3.65580908,91.63,91.564,2.86795117]
[1772706285807,3.65580908,91.63,91.58,2.87049573]
[1772706286706,13.47380908,91.645,91.593,9.823]
[1772706287211,13.47380908,91.645,91.6,9.822]
[1772706287212,3.65580908,91.645,91.6,9.822]
[1772706288106,3.65580908,91.645,91.608,9.821]
[1772706288704,9.816,91.661,91.608,12.69787884]
[1772706289105,3.59395747,91.656,91.601,9.822]
[1772706289613,3.59395747,91.652,91.601,9.822]
[1772706290418,9.817,91.65,91.601,9.822]
[1772706291908,3.59395747,91.652,91.601,9.822]
[1772706292119,3.59395747,91.652,91.607,9.822]
[1772706292717,13.40895747,91.665,91.608,2.85911308]
[1772706292919,3.59395747,91.664,91.608,2.85911308]
[1772706294519,3.59395747,91.664,91.616,9.821]
[1772706295615,3.59395747,91.66,91.608,9.821]
[1772706295821,3.59395747,91.66,91.582,2.87274702]
[1772706296118,3.59395747,91.658,91.605,9.822]
[1772706297520,3.59395747,91.656,91.605,9.822]
[1772706297718,3.59395747,91.656,91.592,2.87274702]
[1772706297719,3.59395747,91.656,91.596,9.823]
[1772706299022,3.59395747,91.643,91.592,2.87274702]
[1772706299620,3.59395747,91.64,91.592,2.87274702]
[1772706300319,3.59395747,91.637,91.565,13.19035523]
[1772706300524,3.59395747,91.629,91.57,3.43088062]
[1772706301220,3.59395747,91.617,91.564,13.19035523]
[1772706301419,3.59395747,91.617,91.561,16.05862254]
[1772706301616,3.59395747,91.609,91.561,2.86826731]
[1772706302020,3.43088062,91.59,91.545,2.90643568]
[1772706302518,3.59395747,91.599,91.545,2.90643568]
[1772706302823,9.823,91.596,91.545,2.90643568]
[1772706304126,9.824,91.588,91.545,2.90643568]
[1772706304328,3.59395747,91.599,91.545,2.90643568]
[1772706307732,3.59395747,91.598,91.53,2.86084352]
[1772706308336,3.59395747,91.595,91.534,2.86084352]
[1772706308526,3.59395747,91.595,91.535,2.86084352]
[1772706308832,3.59395747,91.595,91.536,2.86084352]
[1772706309226,3.59395747,91.595,91.537,2.86084352]